bitfinex/quotes_BTCUSD_20251116
["timestamp","ask_amount","ask_price","bid_price","bid_amount"]
[1763317423758,0.08436,95066.0,95065.0,0.2054]
[1763317425114,0.08436,95066.0,95065.0,0.29237874]
[1763317425321,0.08432,95069.0,95066.0,0.04341874]
[1763317425532,0.08432,95069.0,95066.0,0.12675844]
[1763317425748,0.08432,95078.0,95070.0,0.00999999]
[1763317425956,0.00013502,95088.0,95087.0,0.16748702]
[1763317426192,0.00013502,95088.0,95087.0,0.18423572]
[1763317426424,0.00013502,95088.0,95087.0,0.22880572]
[1763317426833,0.0002,95140.0,95110.0,0.95276531]
[1763317427029,0.0002,95140.0,95138.0,0.04341874]
[1763317427030,0.0196473,95139.0,95138.0,0.04341874]
[1763317427160,0.00065026,95140.0,95138.0,0.04341874]
[1763317427368,0.01961958,95139.0,95137.0,0.02098]
[1763317427576,0.01961958,95138.0,95123.0,0.02098]
[1763317427784,0.00065026,95140.0,95139.0,0.02098]
[1763317428206,0.02027004,95140.0,95124.0,0.04341874]
[1763317428405,0.00065026,95140.0,95126.0,0.04341874]
[1763317428611,0.00065026,95140.0,95139.0,0.14504828]
[1763317429306,0.00065026,95140.0,95139.0,0.11629828]
[1763317429519,0.02024409,95140.0,95138.0,0.001]
[1763317429721,0.00065026,95140.0,95138.0,0.001]
[1763317430106,0.01959402,95139.0,95138.0,0.001]
[1763317430548,0.01959402,95139.0,95134.0,0.02098]
[1763317430705,0.01959402,95138.0,95135.0,0.051125]
[1763317430921,0.00065026,95140.0,95139.0,0.02875]
[1763317431351,0.02023056,95140.0,95139.0,0.02875]
[1763317431550,0.02023056,95140.0,95139.0,0.11673874]
[1763317431918,0.02023056,95140.0,95139.0,0.11773874]
[1763317432167,0.00065026,95140.0,95139.0,0.14124244]
[1763317432589,0.00065026,95140.0,95139.0,0.14224244]
[1763317432727,0.00065026,95140.0,95139.0,0.11873874]
[1763317433513,0.02021857,95140.0,95139.0,0.11873874]
[1763317434696,0.00065026,95140.0,95139.0,0.11873874]
[1763317435098,0.00065026,95140.0,95139.0,0.11773874]
[1763317435300,0.08493026,95140.0,95139.0,0.11673874]
[1763317435631,0.08493026,95140.0,95139.0,0.14204244]
[1763317435967,0.08493026,95140.0,95139.0,0.07432]
[1763317436167,0.10448709,95140.0,95139.0,0.001]
[1763317436369,0.42748709,95140.0,95139.0,0.003]
[1763317436727,0.42748709,95140.0,95139.0,0.002]
[1763317437230,0.42748709,95140.0,95139.0,0.004]
[1763317437430,0.42748709,95140.0,95139.0,0.002]
[1763317437642,0.323,95139.0,95134.0,0.02098]
[1763317437840,0.01955683,95138.0,95137.0,0.09531828]
[1763317438424,0.01955683,95138.0,95134.0,0.02098]
[1763317438745,0.01955683,95138.0,95136.0,0.09531828]
[1763317438948,0.01955683,95137.0,95136.0,0.09531828]
[1763317439274,0.01955683,95137.0,95134.0,0.02098]
[1763317439517,0.00065026,95140.0,95138.0,0.04341874]
[1763317439724,0.00065026,95140.0,95139.0,0.19251874]
[1763317439939,0.00065026,95140.0,95139.0,0.26583874]
[1763317439940,0.1044976,95140.0,95139.0,0.26583874]
[1763317440353,0.1044976,95140.0,95139.0,0.22126874]
[1763317440752,0.08428,95140.0,95139.0,0.22226874]
[1763317441195,0.08428,95140.0,95139.0,0.22126874]
[1763317441609,0.08428,95140.0,95139.0,0.30159544]
[1763317441822,0.08428,95140.0,95139.0,0.29959544]
[1763317442212,0.08428,95140.0,95139.0,0.30059544]
[1763317443205,0.08428,95140.0,95139.0,0.30159544]
[1763317443404,0.08428,95140.0,95139.0,0.30059544]
[1763317443621,0.08428,95140.0,95139.0,0.30159544]
[1763317443749,0.08428,95140.0,95139.0,0.1531]
[1763317444394,0.08428,95140.0,95139.0,0.1511]
[1763317444612,0.08428,95140.0,95139.0,0.1491]
[1763317444820,0.08428,95140.0,95139.0,0.1511]
[1763317445219,0.08428,95140.0,95139.0,0.1501]
[1763317446073,0.08428,95140.0,95139.0,0.1491]
[1763317446291,0.08428,95140.0,95139.0,0.001]
[1763317447133,0.08428,95140.0,95119.0,0.1491]
[1763317447342,0.08428,95140.0,95120.0,0.1491]
[1763317447769,0.08428,95140.0,95120.0,0.17563983]
[1763317447970,0.08428,95140.0,95139.0,0.001]
[1763317448590,0.08428,95140.0,95121.0,0.1491]
[1763317450523,0.08428,95140.0,95121.0,0.1501]
[1763317451554,0.08428,95140.0,95121.0,0.001]
[1763317452690,0.34263639,95139.0,95121.0,0.001]
[1763317452901,0.01963639,95138.0,95121.0,0.001]
[1763317453098,0.01963639,95137.0,95121.0,0.001]
[1763317453337,0.01963639,95136.0,95121.0,0.001]
[1763317453541,0.01963639,95135.0,95120.0,0.02790297]
[1763317453742,0.01963639,95134.0,95121.0,0.001]
[1763317453968,0.01963639,95133.0,95121.0,0.002]
[1763317454281,0.01967039,95132.0,95123.0,0.02790297]
[1763317454436,0.01967039,95131.0,95122.0,0.02790297]
[1763317454663,0.01967039,95130.0,95122.0,0.02790297]
[1763317454950,0.040728,95138.0,95122.0,0.02790297]
[1763317454951,0.01967047,95129.0,95122.0,0.02790297]
[1763317455141,0.01967047,95128.0,95121.0,0.001]
[1763317455316,0.01967047,95127.0,95121.0,0.001]
[1763317455658,0.01967047,95126.0,95121.0,0.001]
[1763317455879,0.01967047,95125.0,95109.0,0.02788365]
[1763317456051,0.01967047,95124.0,95123.0,0.001]
[1763317456538,0.01967047,95124.0,95112.0,0.02788365]
[1763317456748,0.01967047,95123.0,95121.0,0.001]
[1763317456956,0.01967047,95122.0,95121.0,0.001]
[1763317457395,0.01967047,95122.0,95112.0,0.02788365]
[1763317457639,0.01967047,95121.0,95112.0,0.02788365]
[1763317457845,0.01967047,95120.0,95112.0,0.02788365]
[1763317458000,0.01967047,95119.0,95112.0,0.02788365]
[1763317458365,0.01967047,95118.0,95111.0,0.02788365]
[1763317458574,0.01967047,95117.0,95111.0,0.02788365]
[1763317458811,0.01967047,95116.0,95111.0,0.02788365]
[1763317459026,0.01967047,95115.0,95111.0,0.02788365]
[1763317459240,0.01967047,95114.0,95111.0,0.02788365]
[1763317459490,0.01967047,95113.0,95111.0,0.02788365]
[1763317459733,0.01967047,95112.0,95111.0,0.001]
[1763317460110,0.01967047,95112.0,95111.0,0.002]
[1763317460251,0.01967047,95112.0,95111.0,0.001]
[1763317460702,0.01967047,95112.0,95111.0,0.002]
[1763317461636,0.01967047,95112.0,95111.0,0.001]
[1763317461836,0.02967047,95112.0,95111.0,0.001]
[1763317462110,0.04341874,95129.0,95111.0,0.001]
[1763317462318,0.01,95112.0,95111.0,0.002]
[1763317462552,0.0265086,95112.0,95111.0,0.001]
[1763317462724,0.01,95104.0,95090.0,0.00999999]
[1763317463930,0.01,95104.0,95090.0,0.01045025]
[1763317464088,0.04341874,95136.0,95090.0,0.01045025]
[1763317464295,0.01,95104.0,95090.0,0.01045025]
[1763317464878,0.01,95100.0,95090.0,0.01045025]
[1763317465079,0.01,95097.0,95090.0,0.01045025]
[1763317465279,0.08428,95096.0,95090.0,0.01045025]
[1763317465947,0.08428,95096.0,95090.0,0.01145025]
[1763317466546,0.08428,95096.0,95090.0,0.01045025]
[1763317466778,0.093708,95096.0,95090.0,0.00045026]
[1763317466980,0.01,95092.0,95090.0,0.00045026]
[1763317467220,0.01650866,95109.0,95100.0,0.00999999]
[1763317467421,0.01,95132.0,95110.0,0.00999999]
[1763317467626,0.01650595,95130.0,95110.0,0.00999999]
[1763317467798,0.01,95128.0,95110.0,0.00999999]
[1763317468000,0.08428,95132.0,95120.0,0.00999999]
[1763317468917,0.40728,95132.0,95120.0,0.00999999]
[1763317469120,0.40741494,95132.0,95120.0,0.00999999]
[1763317469454,0.40741494,95132.0,95120.0,0.01099999]
[1763317469863,0.40741494,95132.0,95120.0,0.01199999]
[1763317470069,0.32313494,95132.0,95120.0,0.01199999]
[1763317470270,0.08428,95131.0,95121.0,0.02018]
[1763317470711,0.08428,95130.0,95126.0,0.09531828]
[1763317471870,0.08428,95130.0,95127.0,0.09531828]
[1763317472703,0.00013494,95132.0,95127.0,0.09531828]
[1763317472906,0.08428,95131.0,95127.0,0.11198711]
[1763317473107,0.08428,95131.0,95127.0,0.09531828]
[1763317473959,0.08428,95131.0,95121.0,0.02018]
[1763317474168,0.08428,95131.0,95126.0,0.09531828]
[1763317474336,0.08428,95131.0,95127.0,0.001]
[1763317474666,0.08428,95131.0,95126.0,0.09631828]
[1763317474827,0.08428,95131.0,95127.0,0.001]
[1763317475279,0.08428,95131.0,95126.0,0.09531828]
[1763317475686,0.08428,95131.0,95127.0,0.001]
[1763317476067,0.08428,95131.0,95127.0,0.002]
[1763317476689,0.08428,95131.0,95127.0,0.001]
[1763317477077,0.08428,95131.0,95127.0,0.002]
[1763317477286,0.08428,95131.0,95126.0,0.09531828]
[1763317477673,0.08428,95131.0,95127.0,0.002]
[1763317477969,0.08428,95131.0,95127.0,0.001]
[1763317478166,0.00013494,95132.0,95130.0,0.0289]
[1763317478426,0.00013494,95132.0,95131.0,0.04908]
[1763317478628,0.08441494,95132.0,95131.0,0.04908]
[1763317478829,0.08441494,95132.0,95131.0,0.08927]
[1763317479784,0.08441494,95132.0,95131.0,0.13268874]
[1763317479785,0.00013494,95132.0,95131.0,0.13268874]
[1763317480056,0.08441494,95132.0,95131.0,0.13268874]
[1763317480617,0.08441494,95132.0,95131.0,0.13468874]
[1763317481142,0.08441494,95132.0,95131.0,0.13268874]
[1763317481403,0.08441494,95132.0,95131.0,0.14168877]
[1763317481619,0.08441494,95132.0,95131.0,0.17217784]
[1763317481846,0.08441494,95132.0,95131.0,0.17017784]
[1763317482045,0.08441494,95132.0,95131.0,0.19806149]
[1763317482203,0.08441494,95132.0,95131.0,0.17017784]
[1763317482399,0.08441494,95132.0,95131.0,0.19797399]
[1763317482604,0.08441494,95132.0,95131.0,0.34707399]
[1763317482982,0.08441494,95132.0,95131.0,0.34907399]
[1763317483330,0.08441494,95132.0,95131.0,0.31927784]
[1763317483538,0.08441494,95132.0,95131.0,0.32127784]
[1763317483744,0.08441494,95132.0,95131.0,0.31927784]
[1763317483917,0.08441494,95132.0,95131.0,0.34035784]
[1763317484124,0.08441494,95132.0,95131.0,0.34235784]
[1763317485315,0.08441494,95132.0,95131.0,0.37935446]
[1763317486384,0.08441494,95132.0,95131.0,0.34235784]
[1763317488405,0.08441494,95132.0,95131.0,0.37006924]
[1763317490222,0.08441494,95132.0,95131.0,0.34235784]
[1763317490427,0.08441494,95132.0,95131.0,0.37005713]
[1763317490834,0.08441494,95132.0,95131.0,0.28578874]
[1763317491035,0.08441494,95132.0,95131.0,0.24237]
[1763317491544,0.08441494,95132.0,95131.0,0.28578874]
[1763317491718,0.08441494,95132.0,95131.0,0.28378874]
[1763317492109,0.08441494,95132.0,95131.0,0.17128]
[1763317492678,0.00013494,95132.0,95131.0,0.31012857]
[1763317492877,0.08441494,95132.0,95131.0,0.30812857]
[1763317493150,0.00013494,95132.0,95131.0,0.31212857]
[1763317493327,0.08441494,95132.0,95131.0,0.31012857]
[1763317493531,0.08441494,95132.0,95131.0,0.30812857]
[1763317493790,0.08441494,95132.0,95131.0,0.28546874]
[1763317493959,0.08441494,95132.0,95131.0,0.28346874]
[1763317494159,0.08441494,95132.0,95131.0,0.28546874]
[1763317494377,0.08441494,95132.0,95131.0,0.28346874]
[1763317494755,0.08441494,95132.0,95131.0,0.28546874]
[1763317495774,0.08441494,95132.0,95131.0,0.28346874]
[1763317496278,0.08441494,95132.0,95131.0,0.004]
[1763317496915,0.08441494,95132.0,95131.0,0.002]
[1763317497140,0.08441494,95132.0,95127.0,0.09531828]
[1763317497391,0.08441494,95132.0,95131.0,0.004]
[1763317497758,0.08441494,95132.0,95127.0,0.09531828]
[1763317497935,0.08441494,95132.0,95131.0,0.001]
[1763317498137,0.08441494,95132.0,95131.0,0.03827183]
[1763317498306,0.08437494,95132.0,95131.0,0.12282057]
[1763317498745,0.08437494,95132.0,95131.0,0.11318874]
[1763317498907,0.08437494,95132.0,95131.0,0.11418874]
[1763317499103,0.08437494,95132.0,95131.0,0.11318874]
[1763317499556,0.08437494,95132.0,95131.0,0.11418874]
[1763317500171,0.08437494,95132.0,95131.0,0.11618874]
[1763317501811,0.08437494,95132.0,95131.0,0.07277]
[1763317502035,0.08437494,95132.0,95131.0,0.07505874]
[1763317502176,0.08437494,95132.0,95131.0,0.11418874]
[1763317502373,0.08437494,95132.0,95131.0,0.14188803]
[1763317503044,0.08437494,95132.0,95131.0,0.09846929]
[1763317503250,0.08437494,95132.0,95131.0,0.03182795]
[1763317503251,0.09281243,95132.0,95131.0,0.03182795]
[1763317503453,0.09281243,95132.0,95131.0,0.002]
[1763317503857,0.09281243,95132.0,95131.0,0.004]
[1763317504052,0.09281243,95132.0,95131.0,0.002]
[1763317504207,0.41581243,95132.0,95131.0,0.002]
[1763317504406,0.40737494,95132.0,95131.0,0.004]
[1763317504841,0.41737494,95132.0,95131.0,0.002]
[1763317505261,0.41737494,95132.0,95131.0,0.004]
[1763317505657,0.41737494,95132.0,95131.0,0.002]
[1763317505906,0.01,95125.0,95110.0,0.02783743]
[1763317506234,0.01,95112.0,95100.0,0.00999999]
[1763317506435,0.323,95129.0,95100.0,0.00999999]
[1763317506690,0.01,95123.0,95100.0,0.00999999]
[1763317506927,0.01968943,95128.0,95100.0,0.00999999]
[1763317506928,0.01,95121.0,95100.0,0.00999999]
[1763317507103,0.323,95127.0,95110.0,0.001]
[1763317507322,0.01,95118.0,95100.0,0.00999999]
[1763317507528,0.06996753,95126.0,95100.0,0.00999999]
[1763317507529,0.05027332,95126.0,95100.0,0.00999999]
[1763317507672,0.01,95113.0,95100.0,0.00999999]
[1763317508283,0.01,95110.0,95100.0,0.01099999]
[1763317508470,0.01,95116.0,95100.0,0.01099999]
[1763317508682,0.05027332,95126.0,95100.0,0.002]
[1763317508683,0.01,95107.0,95100.0,0.002]
[1763317508889,0.01,95101.0,95079.0,0.02783743]
[1763317509102,0.01,95101.0,95100.0,0.001]
[1763317509322,0.01,95101.0,95100.0,0.002]
[1763317509570,0.01,95101.0,95100.0,0.001]
[1763317509781,0.01,95101.0,95071.0,0.09531828]
[1763317509782,0.01650722,95113.0,95071.0,0.02783743]
[1763317510105,0.42831828,95101.0,95100.0,0.001]
[1763317510289,0.42831828,95101.0,95080.0,0.00999999]
[1763317510290,0.01,95089.0,95080.0,0.00999999]
[1763317510495,0.323,95100.0,95080.0,0.00999999]
[1763317510698,0.01,95093.0,95080.0,0.00999999]
[1763317510872,0.01,95081.0,95080.0,0.00999999]
[1763317511076,0.323,95100.0,95080.0,0.00999999]
[1763317511276,0.323,95100.0,95080.0,0.00045026]
[1763317511277,0.01,95083.0,95080.0,0.00045026]
[1763317511481,0.01,95089.0,95080.0,0.01045025]
[1763317511821,0.01428431,95089.0,95080.0,0.01045025]
[1763317512027,0.00999999,95120.0,95080.0,0.01045025]
[1763317512028,0.11590977,95088.0,95081.0,0.09531828]
[1763317512229,0.02650722,95113.0,95100.0,0.00999999]
[1763317512449,0.01401705,95103.0,95100.0,0.00999999]
[1763317512659,0.08428,95112.0,95100.0,0.00999999]
[1763317512660,0.40728,95112.0,95100.0,0.00999999]
[1763317512861,0.08428,95112.0,95100.0,0.00999999]
[1763317513056,0.03162303,95109.0,95100.0,0.00999999]
[1763317513279,0.08428,95108.0,95100.0,0.00999999]
[1763317513617,0.08428,95108.0,95101.0,0.09531828]
[1763317514016,0.08428,95108.0,95107.0,0.02764]
[1763317514938,0.08428,95108.0,95101.0,0.13644828]
[1763317515342,0.08428,95108.0,95107.0,0.004]
[1763317515742,0.08428,95108.0,95107.0,0.002]
[1763317517433,0.09428,95108.0,95107.0,0.002]
[1763317517672,0.426708,95108.0,95107.0,0.002]
[1763317517876,0.323,95107.0,95065.0,0.04758316]
[1763317518083,0.323,95107.0,95090.0,0.00999999]
[1763317518293,0.01,95101.0,95090.0,0.00999999]
[1763317518483,0.01,95095.0,95090.0,0.00999999]
[1763317518686,0.01,95099.0,95065.0,0.01979]
[1763317518823,0.323,95105.0,95065.0,0.01979]
[1763317518824,0.01,95089.0,95065.0,0.01979]
[1763317519031,0.01,95084.0,95050.0,0.02779316]
[1763317519232,0.0333,95098.0,95049.0,0.06463316]
[1763317519436,0.01,95082.0,95070.0,0.00999999]
[1763317519775,0.0333,95098.0,95070.0,0.00999999]
[1763317520074,0.0333,95098.0,95080.0,0.01045025]
[1763317520293,0.01,95088.0,95080.0,0.01045025]
[1763317520502,0.0333,95098.0,95080.0,0.01045025]
[1763317520640,0.01,95099.0,95090.0,0.00999999]
[1763317520857,0.01,95103.0,95090.0,0.00999999]
[1763317521147,0.08432,95098.0,95090.0,0.00999999]
[1763317521756,0.01,95091.0,95090.0,0.01099999]
[1763317521925,0.08432,95098.0,95090.0,0.00999999]
[1763317522165,0.08432,95098.0,95090.0,0.001]
[1763317522363,0.01,95093.0,95090.0,0.01199999]
[1763317522567,0.04489471,95092.0,95090.0,0.001]
[1763317522774,0.01,95091.0,95090.0,0.001]
[1763317522978,0.3546271,95097.0,95090.0,0.001]
[1763317523178,0.3546271,95097.0,95090.0,0.01099999]
[1763317523508,0.01,95096.0,95090.0,0.00999999]
[1763317523707,0.01,95095.0,95090.0,0.01099999]
[1763317524059,0.01,95094.0,95090.0,0.002]
[1763317524260,0.3546271,95097.0,95080.0,0.01045025]
[1763317524467,0.05389471,95096.0,95090.0,0.01199999]
[1763317524684,0.01,95096.0,95090.0,0.01199999]
[1763317524884,0.3546271,95097.0,95090.0,0.00999999]
[1763317525093,0.01,95095.0,95090.0,0.01099999]
[1763317525511,0.3546271,95097.0,95090.0,0.01099999]
[1763317525685,0.3646271,95097.0,95090.0,0.01199999]
[1763317525887,0.3546271,95097.0,95090.0,0.01199999]
[1763317526090,0.0196067,95096.0,95090.0,0.01199999]
[1763317526289,0.04585538,95096.0,95090.0,0.01199999]
[1763317526499,0.05585538,95096.0,95090.0,0.01099999]
[1763317526697,0.05585538,95096.0,95090.0,0.01199999]
[1763317526900,0.05585538,95096.0,95090.0,0.01099999]
[1763317527714,0.05585538,95096.0,95090.0,0.01199999]
[1763317528056,0.01650888,95095.0,95090.0,0.01199999]
[1763317528271,0.36885538,95096.0,95090.0,0.01199999]
[1763317528272,0.323,95096.0,95090.0,0.01199999]
[1763317528417,0.37424726,95095.0,95090.0,0.01199999]
[1763317528620,0.3546271,95095.0,95090.0,0.01199999]
[1763317529211,0.01962828,95094.0,95090.0,0.01199999]
[1763317529419,0.01962828,95093.0,95090.0,0.01099999]
[1763317529609,0.323,95097.0,95090.0,0.01199999]
[1763317529849,0.02108,95094.0,95090.0,0.01099999]
[1763317530051,0.01962895,95093.0,95090.0,0.01099999]
[1763317530270,0.02108,95094.0,95090.0,0.001]
[1763317530474,0.01962968,95093.0,95090.0,0.001]
[1763317530676,0.01962968,95092.0,95090.0,0.001]
[1763317530966,0.01,95095.0,95090.0,0.001]
[1763317531189,0.01650893,95093.0,95080.0,0.01045025]
[1763317531396,0.01962968,95092.0,95090.0,0.002]
[1763317531598,0.01962968,95091.0,95090.0,0.002]
[1763317531776,0.01962968,95092.0,95090.0,0.001]
[1763317531972,0.01962968,95091.0,95090.0,0.002]
[1763317532390,0.06677909,95150.0,95090.0,0.001]
[1763317532583,0.08432,95091.0,95090.0,0.001]
[1763317532791,0.08432,95091.0,95090.0,0.002]
[1763317533190,0.08432,95091.0,95086.0,0.01814]
[1763317534004,0.08432,95091.0,95090.0,0.002]
[1763317534220,0.08432,95091.0,95080.0,0.01045025]
[1763317534348,0.01,95090.0,95086.0,0.001]
[1763317534550,0.08432,95091.0,95086.0,0.003]
[1763317534756,0.08432,95091.0,95086.0,0.001]
[1763317535158,0.08432,95091.0,95090.0,0.002]
[1763317535835,0.08432,95091.0,95090.0,0.004]
[1763317536110,0.09432,95091.0,95090.0,0.004]
[1763317536316,0.323,95090.0,95080.0,0.00045026]
[1763317536461,0.01,95082.0,95080.0,0.00045026]
[1763317536818,0.323,95090.0,95086.0,0.001]
[1763317536962,0.01,95084.0,95080.0,0.01045025]
[1763317537163,0.01,95083.0,95080.0,0.00045026]
[1763317537560,0.092752,95091.0,95080.0,0.00045026]
[1763317537790,0.323,95090.0,95080.0,0.01245025]
[1763317537989,0.01,95085.0,95080.0,0.01245025]
[1763317538312,0.01,95085.0,95080.0,0.01045025]
[1763317538878,0.0425752,95084.0,95080.0,0.00145026]
[1763317539076,0.01,95082.0,95080.0,0.00245026]
[1763317539283,0.01,95082.0,95080.0,0.00145026]
[1763317539495,0.323,95090.0,95080.0,0.00045026]
[1763317539692,0.323,95090.0,95080.0,0.01145025]
[1763317539897,0.01,95087.0,95080.0,0.01245025]
[1763317540263,0.08432,95091.0,95080.0,0.01045025]
[1763317540457,0.01,95089.0,95080.0,0.01345025]
[1763317540595,0.08432,95091.0,95080.0,0.01145025]
[1763317540804,0.01,95089.0,95080.0,0.01145025]
[1763317541004,0.08432,95091.0,95080.0,0.01345025]
[1763317541324,0.08432,95091.0,95080.0,0.01145025]
[1763317541531,0.323,95116.0,95090.0,0.00999999]
[1763317541728,0.03162557,95103.0,95090.0,0.00999999]
[1763317541950,0.01,95106.0,95090.0,0.00999999]
[1763317542150,0.00985572,95105.0,95090.0,0.00999999]
[1763317542468,0.00985572,95104.0,95090.0,0.00999999]
[1763317542686,0.01,95095.0,95090.0,0.00999999]
[1763317542898,0.03162456,95113.0,95080.0,0.00245026]
[1763317543057,0.323,95100.0,95080.0,0.00145026]
[1763317543438,0.00985729,95099.0,95080.0,0.00045026]
[1763317543795,0.01,95081.0,95080.0,0.00045026]
[1763317544380,0.02971863,95081.0,95080.0,0.00145026]
[1763317544580,0.02971863,95081.0,95080.0,0.00045026]
[1763317545407,0.02972623,95081.0,95080.0,0.00045026]
[1763317545737,0.02972623,95081.0,95080.0,0.00145026]
[1763317546088,0.01972623,95081.0,95080.0,0.00245026]
[1763317546322,0.01972623,95081.0,95080.0,0.00045026]
[1763317546531,0.01972623,95081.0,95080.0,0.00145026]
[1763317546700,0.01972623,95081.0,95080.0,0.00345026]
[1763317546895,0.42704623,95081.0,95080.0,0.00145026]
[1763317547164,0.44643863,95081.0,95080.0,0.00145026]
[1763317547374,0.45643863,95081.0,95080.0,0.00345026]
[1763317547639,0.45643863,95081.0,95080.0,0.00145026]
[1763317547929,0.43704623,95081.0,95080.0,0.00145026]
[1763317548140,0.42704623,95081.0,95080.0,0.00345026]
[1763317548264,0.42704623,95081.0,95080.0,0.00245026]
[1763317548447,0.4672393,95081.0,95080.0,0.00245026]
[1763317548649,0.35260093,95081.0,95080.0,0.00245026]
[1763317548887,0.35260093,95081.0,95080.0,0.00345026]
[1763317548888,0.34272623,95081.0,95080.0,0.00345026]
[1763317549089,0.35272623,95081.0,95080.0,0.00145026]
[1763317549666,0.35272623,95081.0,95080.0,0.00045026]
[1763317549868,0.35272623,95081.0,95080.0,0.00145026]
[1763317550069,0.35272623,95081.0,95080.0,0.00245026]
[1763317552554,0.36200623,95081.0,95080.0,0.00245026]
[1763317552739,0.34272623,95081.0,95080.0,0.00245026]
[1763317555086,0.34272623,95081.0,95080.0,0.02757026]
[1763317555287,0.42704623,95081.0,95080.0,0.02757026]
[1763317555518,0.42704623,95081.0,95080.0,0.00245026]
[1763317555715,0.42704623,95081.0,95080.0,0.00045026]
[1763317555950,0.42704623,95081.0,95080.0,0.00145026]
[1763317556151,0.42704623,95081.0,95080.0,0.00245026]
[1763317556469,0.42704623,95081.0,95080.0,0.00145026]
[1763317557051,0.40732,95081.0,95080.0,0.00145026]
[1763317557246,0.40732,95081.0,95080.0,0.00245026]
[1763317557451,0.40732,95081.0,95080.0,0.00345026]
[1763317560323,0.448052,95081.0,95080.0,0.00345026]
[1763317560558,0.40732,95081.0,95080.0,0.00345026]
[1763317562220,0.40732,95081.0,95080.0,0.06564026]
[1763317562411,0.40732,95081.0,95080.0,0.08492026]
[1763317562819,0.40732,95081.0,95080.0,0.04785026]
[1763317563035,0.40732,95081.0,95080.0,0.08292026]
[1763317563455,0.40732,95081.0,95080.0,0.08492026]
[1763317563655,0.40732,95081.0,95080.0,0.08392026]
[1763317564242,0.40732,95081.0,95080.0,0.00445026]
[1763317564445,0.41732,95081.0,95080.0,0.00245026]
[1763317564964,0.40732,95081.0,95080.0,0.00245026]
[1763317565538,0.40732,95081.0,95080.0,0.00302565]
[1763317565732,0.40732,95081.0,95070.0,0.00999999]
[1763317565733,0.323,95080.0,95071.0,0.04341874]
[1763317566028,0.323,95080.0,95071.0,0.04355376]
[1763317566613,0.323,95080.0,95071.0,0.19265376]
[1763317567736,0.08432,95081.0,95071.0,0.19365376]
[1763317568085,0.08432,95081.0,95080.0,0.001]
[1763317568750,0.08432,95081.0,95071.0,0.19265376]
[1763317568974,0.08432,95081.0,95080.0,0.02512]
[1763317569716,0.08432,95081.0,95080.0,0.02712]
[1763317570406,0.08432,95081.0,95080.0,0.02812]
[1763317571133,0.08432,95081.0,95080.0,0.06519]
[1763317571357,0.02846113,95112.0,95100.0,0.00999999]
[1763317571570,0.03162203,95110.0,95100.0,0.00999999]
[1763317571772,0.01,95102.0,95100.0,0.00999999]
[1763317572046,0.03162203,95110.0,95090.0,0.00999999]
[1763317572047,0.01,95100.0,95090.0,0.00999999]
[1763317572209,0.03162203,95110.0,95100.0,0.00999999]
[1763317572410,0.01,95102.0,95100.0,0.00999999]
[1763317572617,0.01,95102.0,95090.0,0.00999999]
[1763317573120,0.01,95100.0,95090.0,0.00999999]
[1763317573311,0.01,95102.0,95090.0,0.00999999]
[1763317573523,0.01,95105.0,95090.0,0.00999999]
[1763317573738,0.02973604,95104.0,95090.0,0.00999999]
[1763317573966,0.01,95104.0,95090.0,0.00999999]
[1763317574188,0.01329005,95106.0,95090.0,0.01099999]
[1763317574428,0.03435242,95105.0,95090.0,0.01099999]
[1763317574661,0.01461905,95105.0,95090.0,0.01099999]
[1763317574899,0.01973345,95104.0,95090.0,0.00999999]
[1763317575157,0.01,95101.0,95090.0,0.01099999]
[1763317575391,0.01650846,95107.0,95090.0,0.00999999]
[1763317575603,0.01461905,95101.0,95090.0,0.00999999]
[1763317575846,0.01461905,95101.0,95090.0,0.01099999]
[1763317576055,0.01461905,95101.0,95090.0,0.00999999]
[1763317576256,0.01461905,95101.0,95090.0,0.01099999]
[1763317577094,0.03409039,95100.0,95090.0,0.01099999]
[1763317577268,0.01,95091.0,95090.0,0.001]
[1763317578546,0.06649842,95100.0,95084.0,0.1491]
[1763317578753,0.01,95089.0,95084.0,0.1491]
[1763317579322,0.33111175,95099.0,95084.0,0.1491]
[1763317579543,0.01,95094.0,95084.0,0.1491]
[1763317579751,0.01,95094.0,95090.0,0.001]
[1763317579954,0.01,95093.0,95090.0,0.001]
[1763317580201,0.00811175,95099.0,95084.0,0.1491]
[1763317580416,0.01,95091.0,95090.0,0.00999999]
[1763317581056,0.01,95090.0,95084.0,0.1491]
[1763317581288,0.01,95090.0,95080.0,0.00999999]
[1763317581497,0.01,95090.0,95067.0,0.03498]
[1763317581498,0.01,95085.0,95084.0,0.001]
[1763317581700,0.04520412,95085.0,95080.0,0.00999999]
[1763317581902,0.04520412,95085.0,95058.0,0.03699662]
[1763317581903,0.04520412,95085.0,95070.0,0.00999999]
[1763317582136,0.01,95070.0,95060.0,0.00999999]
[1763317582526,0.01,95079.0,95060.0,0.00999999]
[1763317582733,0.01651095,95083.0,95060.0,0.00999999]
[1763317582942,0.01,95075.0,95070.0,0.00999999]
[1763317583190,0.04510679,95082.0,95060.0,0.00999999]
[1763317583420,0.01,95073.0,95070.0,0.01013501]
[1763317583625,0.01,95073.0,95070.0,0.00013502]
[1763317584269,0.01,95075.0,95070.0,0.00213502]
[1763317584501,0.01,95075.0,95070.0,0.00113502]
[1763317584714,0.01,95075.0,95070.0,0.01113501]
[1763317584886,0.01842,95074.0,95070.0,0.01213501]
[1763317585062,0.02842,95074.0,95070.0,0.00213502]
[1763317585272,0.01842,95074.0,95070.0,0.00213502]
[1763317585473,0.01842,95074.0,95070.0,0.00113502]
[1763317586115,0.01842,95074.0,95070.0,0.00013502]
[1763317586275,0.01842,95074.0,95070.0,0.00113502]
[1763317586681,0.01842,95074.0,95070.0,0.00213502]
[1763317587039,0.01842,95074.0,95070.0,0.00013502]
[1763317587284,0.01842,95074.0,95070.0,0.00213502]
[1763317593913,0.01842,95074.0,95071.0,0.02108]
[1763317594257,0.01842,95074.0,95070.0,0.00213502]
[1763317594948,0.08432,95073.0,95070.0,0.00213502]
[1763317595160,0.08432,95073.0,95070.0,0.00113502]
[1763317595372,0.08432,95073.0,95071.0,0.001]
[1763317595797,0.08432,95073.0,95070.0,0.00113502]